bitfinex/quotes_SOLUSD_20260221
["timestamp","ask_amount","ask_price","bid_price","bid_amount"]
[1771678147370,0.22012754,85.344,85.327,0.48732019]
[1771678147556,0.22012754,85.344,85.285,3.69383402]
[1771678147557,0.22004474,85.339,85.291,0.46597492]
[1771678147876,0.22004474,85.329,85.291,0.46597492]
[1771678148471,11.71948246,85.328,85.291,0.46597492]
[1771678148771,0.2199629,85.327,85.293,0.46597492]
[1771678148980,0.2199629,85.327,85.3,4.69814765]
[1771678149276,0.2199629,85.327,85.301,0.46597492]
[1771678150579,0.21972295,85.346,85.321,0.48062383]
[1771678152283,0.21972295,85.346,85.33,4.23217273]
[1771678152666,0.21972295,85.346,85.328,0.48062383]
[1771678153885,0.21941569,85.344,85.322,0.48062383]
[1771678154757,11.71714804,85.345,85.322,0.48062383]
[1771678155283,0.21934106,85.344,85.322,0.48062383]
[1771678155478,0.21934106,85.344,85.313,0.48062383]
[1771678155778,0.21934106,85.344,85.238,1.17318566]
[1771678155779,0.21934106,85.329,85.291,0.48062383]
[1771678155979,0.2192673,85.327,85.292,0.48062383]
[1771678158074,0.2191223,85.325,85.294,0.48062383]
[1771678160389,11.71967853,85.327,85.278,29.3155738]
[1771678160390,11.71967853,85.327,85.301,0.48062383]
[1771678160783,11.93865914,85.327,85.301,0.48062383]
[1771678161084,11.93858952,85.327,85.301,0.48062383]
[1771678161584,0.21891099,85.34,85.311,0.48062383]
[1771678162474,11.71797185,85.339,85.311,0.48062383]
[1771678163384,11.93674598,85.339,85.311,0.48062383]
[1771678163569,11.71797185,85.339,85.311,0.48062383]
[1771678163776,11.71728533,85.344,85.311,0.48062383]
[1771678163975,0.21870687,85.343,85.311,0.48062383]
[1771678166178,0.21857467,85.348,85.321,0.48062383]
[1771678170592,0.21857467,85.348,85.323,0.48062383]
[1771678171691,0.2,85.35,85.325,0.48062383]
[1771678172698,0.41819592,85.35,85.325,0.48062383]
[1771678173091,0.2,85.35,85.325,0.48062383]
[1771678173295,0.21813531,85.349,85.325,0.48062383]
[1771678174880,0.21807539,85.347,85.311,0.48062383]
[1771678175288,0.21801616,85.345,85.311,0.48062383]
[1771678177705,0.21784253,85.343,85.311,0.48062383]
[1771678179504,0.21773007,85.341,85.311,0.48062383]
[1771678180103,11.93475751,85.346,85.313,0.47316093]
[1771678180312,0.21767481,85.345,85.313,0.47316093]
[1771678182281,11.71728533,85.344,85.313,0.47316093]
[1771678182504,0.21756618,85.343,85.313,0.47316093]
[1771678183701,0.21756618,85.343,85.31,4.225131]
[1771678183702,0.21756618,85.343,85.315,0.47316093]
[1771678186008,0.21756618,85.343,85.274,3.69383402]
[1771678186009,0.21735632,85.339,85.29,4.225131]
[1771678186199,0.21735632,85.339,85.301,0.47316093]
[1771678190106,11.71810916,85.338,85.302,11.72305455]
[1771678190414,0.21715593,85.337,85.303,0.47316093]
[1771678190811,11.71810916,85.338,85.303,0.47316093]
[1771678191396,0.21710726,85.342,85.305,0.47316093]
[1771678191811,11.71742263,85.343,85.311,0.47316093]
[1771678193016,0.2170116,85.342,85.311,0.47316093]
[1771678195104,0.2170116,85.342,85.313,0.47316093]
[1771678195507,11.71769723,85.341,85.313,0.47316093]
[1771678195703,0.21691812,85.34,85.313,0.47316093]
[1771678201416,0.21691812,85.34,85.315,0.47316093]
[1771678202109,0.21691812,85.34,85.274,11.72690386]
[1771678202110,0.21660744,85.339,85.274,11.72690386]
[1771678202299,0.48581149,85.329,85.29,4.225131]
[1771678203716,0.48581149,85.309,85.273,11.72694691]
[1771678204412,0.48581149,85.309,85.274,0.47316093]
[1771678206014,0.48581149,85.307,85.274,0.47316093]
[1771678206212,0.48581149,85.307,85.275,12.19992727]
[1771678206425,0.48581149,85.307,85.276,0.47316093]
[1771678209417,0.4725549,85.305,85.276,0.47316093]
[1771678212213,0.4725549,85.305,85.278,0.49131483]
[1771678212713,0.48239615,85.303,85.278,0.49131483]
[1771678213327,0.48239615,85.299,85.261,0.49131483]
[1771678213510,0.48239615,85.299,85.262,0.49131483]
[1771678214313,0.48239615,85.297,85.264,0.49131483]
[1771678216412,0.48239615,85.289,85.263,11.72841678]
[1771678217230,0.48239615,85.289,85.264,0.49131483]
[1771678218831,0.48239615,85.289,85.266,0.49131483]
[1771678221833,0.48239615,85.296,85.268,0.49131483]
[1771678226034,11.72383417,85.297,85.271,0.49131483]
[1771678226941,0.48239615,85.3,85.271,0.49131483]
[1771678229249,0.48239615,85.304,85.273,0.49131483]
[1771678229547,11.72258767,85.306,85.281,0.49131483]
[1771678232640,0.48239615,85.306,85.281,0.49131483]
[1771678235434,0.48239615,85.305,85.281,0.49131483]
[1771678236930,11.72260033,85.306,85.281,0.49131483]
[1771678237232,12.20499648,85.306,85.281,0.49131483]
[1771678239240,0.46821526,85.305,85.281,0.49131483]
[1771678239624,3.69383402,85.329,85.24,4.22853269]
[1771678239625,12.18980469,85.313,85.283,0.46388703]
[1771678241450,12.18980469,85.313,85.28,4.22853269]
[1771678241451,0.46821526,85.312,85.285,0.46388703]
[1771678252144,0.46821526,85.31,85.285,0.46388703]
[1771678252347,0.46821526,85.31,85.284,11.72552882]
[1771678252861,0.46821526,85.31,85.285,0.46388703]
[1771678256849,0.46821526,85.31,85.287,0.46388703]
[1771678263256,3.69383402,85.339,85.286,11.72525385]
[1771678263257,0.46821526,85.326,85.291,0.46388703]
[1771678263557,0.46821526,85.326,85.3,4.22853269]
[1771678263761,0.46821526,85.326,85.301,0.46388703]
[1771678265347,11.71989452,85.325,85.301,0.46388703]
[1771678265549,0.46821526,85.324,85.301,0.46388703]
[1771678267259,0.46821526,85.348,85.303,0.46388703]
[1771678267465,0.46821526,85.346,85.305,0.46388703]
[1771678268258,0.46821526,85.346,85.311,0.48085913]
[1771678269445,0.4566562,85.344,85.311,0.48085913]
[1771678269858,0.4566562,85.344,85.313,0.50034183]
[1771678270371,0.4566562,85.344,85.321,0.50034183]
[1771678276059,11.71714804,85.345,85.321,0.50034183]
[1771678276365,0.2,85.35,85.331,0.50034183]
[1771678277050,0.4566562,85.348,85.331,0.50034183]
[1771678277251,0.2,85.35,85.331,0.50034183]
[1771678279263,0.2,85.35,85.333,0.50034183]
[1771678279661,0.2,85.35,85.34,4.22853269]
[1771678279862,0.2,85.35,85.341,0.50034183]
[1771678280064,0.4566562,85.36,85.341,0.50034183]
[1771678280365,0.4566562,85.364,85.341,0.50034183]
[1771678281063,0.4566562,85.375,85.341,0.50034183]
[1771678281265,0.4566562,85.375,85.332,41.01626587]
[1771678281266,0.4566562,85.375,85.351,0.50034183]
[1771678288975,0.4566562,85.373,85.351,0.50034183]
[1771678289271,0.4566562,85.373,85.342,0.50034183]
[1771678290408,0.4566562,85.373,85.344,0.50034183]
[1771678290563,0.4566562,85.373,85.351,0.50034183]
[1771678296276,0.4566562,85.371,85.331,0.50034183]
[1771678296477,0.4566562,85.371,85.341,0.50034183]
[1771678297567,0.4667212,85.369,85.341,0.50034183]
[1771678299090,0.4667212,85.367,85.341,0.50034183]
[1771678301992,0.4667212,85.365,85.341,0.50034183]
[1771678313998,4.22007689,85.39,85.321,29.30110992]
[1771678313999,0.4667212,85.363,85.333,0.49660683]
[1771678314185,0.4667212,85.363,85.329,0.49660683]
[1771678314801,0.4667212,85.363,85.331,0.49660683]
[1771678316293,0.4667212,85.363,85.332,11.7189331]
[1771678316510,0.4667212,85.363,85.333,0.49660683]
[1771678316802,0.4667212,85.359,85.32,0.49660683]
[1771678317204,0.4667212,85.359,85.322,0.49660683]
[1771678319787,0.4667212,85.357,85.322,0.49660683]
[1771678321406,0.4667212,85.357,85.316,0.49660683]
[1771678321900,0.4667212,85.339,85.311,0.49660683]
[1771678322102,0.4667212,85.339,85.301,0.49660683]
[1771678322484,0.4667212,85.348,85.32,4.22007689]
[1771678322707,0.4667212,85.355,85.321,0.49660683]
[1771678323989,0.4667212,85.353,85.321,0.49660683]
[1771678325083,4.22007689,85.36,85.321,0.49660683]
[1771678325084,0.4667212,85.351,85.321,0.49660683]
[1771678327197,11.71646162,85.35,85.321,0.49660683]
[1771678327401,0.4667212,85.349,85.321,0.49660683]
[1771678328309,11.71673618,85.348,85.321,0.49660683]
[1771678328490,0.48279198,85.347,85.321,0.49660683]
[1771678330392,0.47877625,85.345,85.321,0.49660683]
[1771678333200,0.47877625,85.343,85.321,0.49660683]
[1771678333407,0.47877625,85.339,85.292,0.46162828]
[1771678334114,0.47877625,85.339,85.301,0.46162828]
[1771678335804,0.47877625,85.337,85.303,0.46162828]
[1771678337211,0.47877625,85.337,85.305,0.46162828]
[1771678340025,0.47877625,85.329,85.306,0.46162828]
[1771678341603,0.47877625,85.327,85.306,0.46162828]
[1771678344425,4.22536919,85.34,85.306,0.46162828]
[1771678344617,4.70414544,85.34,85.306,0.46162828]
[1771678344803,0.47877625,85.339,85.306,0.46162828]
[1771678345627,0.47877625,85.336,85.306,0.46162828]
[1771678350237,0.47877625,85.334,85.306,0.46162828]
[1771678353230,0.47877625,85.339,85.306,0.46162828]
[1771678353440,0.47877625,85.339,85.311,0.46162828]
[1771678354633,12.1967481,85.339,85.311,0.46162828]
[1771678355013,0.47877625,85.338,85.311,0.46162828]
[1771678359035,0.45138195,85.337,85.311,0.46162828]
[1771678363821,0.45138195,85.335,85.311,0.46162828]
[1771678365638,0.45138195,85.335,85.312,11.72168042]
[1771678365821,0.45138195,85.335,85.313,0.49239283]
[1771678367335,11.71865844,85.334,85.313,0.49239283]
[1771678367534,0.45138195,85.333,85.308,0.49239283]
[1771678370551,0.45138195,85.342,85.31,0.49239283]
[1771678370737,0.45138195,85.342,85.311,0.49239283]
[1771678371249,0.45138195,85.354,85.311,0.49239283]
[1771678371827,0.45138195,85.354,85.321,0.49239283]
[1771678372765,29.28464096,85.369,85.321,0.49239283]
[1771678372930,0.45138195,85.368,85.331,0.49239283]
[1771678374237,0.45138195,85.366,85.331,0.49239283]
[1771678375757,4.22536919,85.36,85.331,0.49239283]
[1771678375934,0.45138195,85.359,85.331,0.49239283]
[1771678376829,0.45138195,85.357,85.331,0.49239283]
[1771678378948,11.71536352,85.358,85.331,0.49239283]
[1771678379157,4.22536919,85.36,85.321,0.49239283]
[1771678379158,0.45138195,85.359,85.321,0.49239283]
[1771678379756,0.45138195,85.349,85.321,0.49239283]
[1771678381360,0.45138195,85.347,85.321,0.49239283]
[1771678383238,0.45138195,85.353,85.323,0.49239283]
[1771678384639,0.45138195,85.353,85.325,0.49239283]
[1771678385454,0.45138195,85.353,85.331,0.49239283]
[1771678385655,0.45138195,85.358,85.331,0.49239283]
[1771678386753,11.71522627,85.359,85.331,0.49239283]
[1771678388866,0.45138195,85.36,85.333,0.47802945]
[1771678390853,0.45568744,85.358,85.335,0.45054429]
[1771678392666,0.45568744,85.358,85.337,0.45054429]
[1771678397981,0.45568744,85.358,85.31,0.45054429]
[1771678398170,0.45568744,85.349,85.321,0.45054429]
[1771678399673,0.45568744,85.347,85.321,0.45054429]
[1771678406445,0.45568744,85.347,85.322,0.45054429]
[1771678406846,0.45568744,85.355,85.322,0.45054429]
[1771678410955,0.45568744,85.353,85.324,0.45054429]
[1771678413001,0.45568744,85.353,85.325,11.71989452]
[1771678413162,0.45568744,85.353,85.326,0.45054429]
[1771678414381,0.45568744,85.353,85.328,0.45054429]
[1771678415661,0.45568744,85.358,85.328,0.45054429]
[1771678418266,0.45568744,85.358,85.33,0.47580988]
[1771678419774,0.45909213,85.356,85.33,0.47580988]
[1771678420092,0.45909213,85.356,85.325,0.47580988]
[1771678420474,29.2844807,85.37,85.325,0.47580988]
[1771678420475,0.45909213,85.354,85.325,0.47580988]
[1771678420675,0.45909213,85.368,85.327,0.47580988]
[1771678423189,11.71412841,85.367,85.327,0.47580988]
[1771678423386,0.45909213,85.366,85.327,0.47580988]
[1771678424082,0.45909213,85.366,85.328,11.71948246]
[1771678424269,0.45909213,85.366,85.329,0.47580988]
[1771678424785,0.45909213,85.374,85.331,0.47580988]
[1771678424990,0.45909213,85.374,85.341,0.47580988]
[1771678425288,0.45909213,85.374,85.343,0.47580988]
[1771678425988,11.71260378,85.379,85.343,0.47580988]
[1771678426488,0.45909213,85.381,85.345,0.47580988]
[1771678429086,0.45909213,85.381,85.346,11.71701075]
[1771678429290,0.45909213,85.381,85.347,0.47580988]
[1771678430592,0.45909213,85.379,85.347,0.47580988]
[1771678431383,0.45909213,85.379,85.341,0.47580988]
[1771678433495,0.45909213,85.377,85.343,0.47580988]
[1771678434674,11.7113673,85.388,85.351,0.47580988]
[1771678434901,0.45909213,85.387,85.351,0.47580988]
[1771678436279,0.45909213,85.393,85.351,0.47580988]
[1771678436594,0.45909213,85.393,85.352,11.71618708]
[1771678436798,0.45909213,85.393,85.353,0.47580988]
[1771678436999,0.45909213,85.393,85.361,0.47580988]
[1771678439106,0.45909213,85.393,85.363,0.47580988]
[1771678442504,0.45909213,85.393,85.371,0.47580988]
[1771678444988,0.2,85.4,85.371,0.47580988]
[1771678444989,0.45909213,85.391,85.371,0.47580988]
[1771678446404,0.45909213,85.389,85.353,11.71604258]
[1771678447691,11.71124748,85.388,85.353,11.71604258]
[1771678447916,0.48389878,85.387,85.353,11.71604258]
[1771678448394,0.48389878,85.387,85.354,0.45294218]
[1771678452087,0.48389878,85.387,85.356,0.4895525]
[1771678453604,0.48389878,85.387,85.358,0.4895525]
[1771678454501,0.48389878,85.387,85.361,0.4895525]
[1771678456287,0.48389878,85.387,85.362,0.4895525]
[1771678461615,0.48389878,85.387,85.364,0.4895525]
[1771678462321,0.46768584,85.399,85.364,0.4895525]
[1771678463316,0.46768584,85.397,85.366,0.4895525]
[1771678464215,0.2,85.4,85.366,0.4895525]
[1771678464417,0.2,85.4,85.381,0.4895525]
[1771678464917,0.46768584,85.409,85.382,0.4895525]
[1771678466010,0.46768584,85.409,85.384,0.4895525]
[1771678467421,0.46768584,85.409,85.391,0.4895525]
[1771678467625,0.46768584,85.409,85.39,4.2161462]
[1771678469719,0.46768584,85.409,85.391,0.34870141]
[1771678476526,9.82e-06,85.391,85.39,4.2161462]
[1771678476732,0.2,85.41,85.38,4.2161462]
[1771678477730,0.2,85.41,85.381,11.71220763]
[1771678478233,0.5000662,85.409,85.381,11.71220763]
[1771678478722,0.5000662,85.409,85.39,1.7e-06]
[1771678479512,0.5000662,85.408,85.391,6.43e-06]
[1771678480319,0.5000662,85.408,85.4,4.2161462]
[1771678481441,0.2,85.41,85.4,4.2161462]
[1771678482515,0.2,85.41,85.401,11.70946476]
[1771678491634,0.5000662,85.416,85.401,11.70946476]
[1771678492529,0.5000662,85.419,85.401,11.70946476]
[1771678495035,11.90556871,85.43,85.41,4.71122548]
[1771678495036,0.2,85.43,85.41,4.71122548]
[1771678496434,0.2,85.43,85.406,0.49507928]
[1771678496637,0.2,85.43,85.402,0.49507928]
[1771678496828,0.2,85.43,85.41,4.2161462]
[1771678497140,0.45777821,85.429,85.41,4.2161462]
[1771678497641,0.45777821,85.429,85.397,0.49507928]
[1771678497819,0.45777821,85.427,85.391,0.49508571]
[1771678498025,0.45777821,85.427,85.4,4.2161462]
[1771678500631,0.45777821,85.427,85.398,11.38254314]
[1771678501851,0.45777821,85.427,85.395,0.50004215]
[1771678503346,0.45777821,85.427,85.397,0.50004215]
[1771678503545,0.45777821,85.427,85.401,0.50004215]
[1771678507027,0.45777821,85.427,85.402,0.50004215]
[1771678511956,0.45777821,85.427,85.402,0.50004215]
[1771678515569,0.2,85.43,85.403,11.70919054]
[1771678515739,0.2,85.43,85.404,0.50004215]
[1771678516047,0.2,85.43,85.411,0.50004215]
[1771678525770,0.2,85.44,85.413,0.50004215]
[1771678526057,0.2,85.44,85.43,4.21209088]
[1771678526259,0.2,85.44,85.43,0.50004215]
[1771678528466,0.2,85.44,85.402,0.28432314]
[1771678528467,0.2,85.44,85.41,4.21209088]
[1771678528648,0.2,85.44,85.404,0.50004215]
[1771678528649,11.70425683,85.439,85.404,0.50004215]
[1771678530771,11.70425683,85.439,85.406,0.50004215]
[1771678530962,11.70425683,85.439,85.401,0.50004215]
[1771678532565,11.70425683,85.439,85.402,11.70932765]
[1771678532866,11.70425683,85.439,85.403,0.50004215]
[1771678533866,11.70425683,85.439,85.405,0.50004215]
[1771678538372,11.70425683,85.439,85.407,0.50004215]
[1771678539282,11.70425683,85.439,85.411,0.50004215]
[1771678539662,0.2,85.44,85.411,0.50004215]
[1771678549069,0.2,85.44,85.412,11.70795672]
[1771678549269,0.2,85.44,85.413,0.50004215]
[1771678551686,16.1163062,85.44,85.412,11.70795672]
[1771678552982,16.1163062,85.44,85.405,11.70888498]
[1771678553571,4.21209088,85.43,85.405,11.70888498]
[1771678553779,4.21209088,85.43,85.405,0.50004215]
[1771678556192,11.70562689,85.429,85.405,0.50004215]
[1771678556488,11.70562689,85.429,85.396,0.50004215]
[1771678556689,11.70562689,85.429,85.391,6.43e-06]
[1771678556889,4.21209088,85.42,85.391,0.50004858]
[1771678557091,4.21209088,85.41,85.391,6.43e-06]
[1771678561084,11.70770381,85.414,85.391,6.43e-06]
[1771678561494,11.70699727,85.419,85.391,6.43e-06]
[1771678561689,4.21209088,85.41,85.391,6.43e-06]
[1771678561891,4.21209088,85.4,85.391,6.43e-06]
[1771678562381,4.21209088,85.4,85.371,0.50004215]
[1771678562579,4.21209088,85.4,85.361,0.50004215]
[1771678562785,4.21209088,85.39,85.361,0.50004215]
[1771678563375,4.21209088,85.4,85.361,0.50004215]
[1771678563991,3.69383402,85.396,85.332,0.50004215]
[1771678564197,4.21209088,85.37,85.332,0.50004215]
[1771678564574,3.69383402,85.396,85.332,0.50004215]
[1771678564575,4.21209088,85.38,85.332,0.50004215]
[1771678565298,4.21209088,85.39,85.341,0.50004215]
[1771678566176,15.92318599,85.39,85.343,0.50004215]
[1771678568498,15.92318599,85.39,85.345,0.50004215]
[1771678570124,15.92318599,85.39,85.351,0.50004215]
[1771678570643,4.21209088,85.41,85.361,0.50004215]
[1771678571118,4.21209088,85.41,85.371,0.50004215]
[1771678571610,11.70836797,85.409,85.372,11.71344234]
[1771678571809,11.70836797,85.409,85.373,0.50004215]
[1771678573813,0.49204031,85.409,85.36,4.21209088]
[1771678574104,0.49204031,85.389,85.356,12.24399981]
[1771678574287,0.49204031,85.389,85.34,4.21209088]
[1771678574694,0.49204031,85.389,85.35,4.21209088]
[1771678575699,0.49204031,85.389,85.353,0.45524433]
[1771678576510,0.49204031,85.389,85.36,4.21209088]
[1771678576816,0.49204031,85.389,85.361,0.45524433]
[1771678578619,0.49204031,85.389,85.363,0.45524433]
[1771678580611,0.49204031,85.389,85.37,4.21209088]
[1771678584823,0.49204031,85.389,85.371,11.71357955]
[1771678585024,0.49204031,85.394,85.372,0.45524433]
[1771678587611,0.49204031,85.394,85.374,0.45524433]
[1771678599729,0.49204031,85.394,85.366,0.4978723]
[1771678600645,0.47011799,85.393,85.366,0.4978723]
[1771678605637,0.47011799,85.393,85.371,0.4978723]
[1771678607553,0.47011799,85.391,85.365,0.4978723]
[1771678607730,0.47011799,85.389,85.355,0.4978723]
[1771678612432,29.27509507,85.397,85.354,11.7158461]
[1771678612433,0.47011799,85.387,85.361,0.4978723]
[1771678615683,0.47011799,85.385,85.361,0.4978723]
[1771678620938,0.47011799,85.383,85.361,0.4978723]
[1771678639770,0.482817,85.388,85.361,0.4978723]
[1771678641472,0.482817,85.386,85.361,0.4978723]
[1771678647876,11.71165895,85.385,85.361,0.4978723]
[1771678648073,11.71165895,85.385,85.324,3.69383402]
[1771678648074,0.482817,85.384,85.343,11.71730642]
[1771678648280,0.482817,85.379,85.33,4.21917972]
[1771678648655,0.482817,85.379,85.34,4.21917972]
[1771678649986,0.482817,85.377,85.34,4.21917972]
[1771678650161,0.482817,85.377,85.341,0.45503777]
[1771678653062,11.71289355,85.376,85.341,0.45503777]
[1771678653263,0.482817,85.375,85.341,0.45503777]
[1771678656480,11.71316794,85.374,85.341,0.45503777]
[1771678656684,0.482817,85.373,85.341,0.45503777]
[1771678657969,11.71344234,85.372,85.341,0.45503777]
[1771678658173,0.4831016,85.371,85.341,0.45503777]
[1771678659181,0.4831016,85.369,85.341,0.45503777]
[1771678661482,11.71399119,85.368,85.341,0.45503777]
[1771678662776,0.4831016,85.368,85.341,0.45503777]
[1771678664778,0.4831016,85.366,85.341,0.45503777]
[1771678668297,11.71440285,85.365,85.341,0.45503777]
[1771678668501,12.19750445,85.365,85.341,0.45503777]
[1771678668805,0.4831016,85.369,85.341,0.45503777]
[1771678669586,0.4831016,85.367,85.341,0.45503777]
[1771678670505,11.71426563,85.366,85.341,0.45503777]
[1771678670805,0.4831016,85.366,85.341,0.45503777]
[1771678673205,11.71440285,85.365,85.341,0.45503777]
[1771678673400,0.4831016,85.364,85.341,0.45503777]
[1771678676597,0.4831016,85.369,85.341,0.45503777]
[1771678677295,11.7137587,85.37,85.341,0.45503777]
[1771678677603,0.4831016,85.376,85.351,0.45771152]
[1771678680399,0.4831016,85.376,85.361,0.45771152]
[1771678683003,0.4831016,85.376,85.351,0.45771152]
[1771678685415,0.4831016,85.374,85.351,0.45771152]
[1771678701334,0.47837052,85.384,85.352,0.45708463]
[1771678709944,0.47837052,85.384,85.353,11.71604981]
[1771678710143,0.47837052,85.384,85.354,0.45708463]
[1771678713942,4.219288,85.4,85.361,0.45708463]
[1771678713943,0.47837052,85.394,85.361,0.45708463]
[1771678716222,0.47837052,85.394,85.363,0.45708463]
[1771678719050,0.47837052,85.394,85.365,0.46468559]
[1771678723741,0.47837052,85.394,85.367,0.46468559]
[1771678727152,0.48977682,85.389,85.351,0.46468559]
[1771678728047,0.48977682,85.387,85.354,11.71579709]
[1771678728435,0.48977682,85.387,85.354,12.18048268]
[1771678731358,0.48977682,85.385,85.355,0.46468559]
[1771678736257,0.48977682,85.385,85.357,0.46468559]
[1771678739665,0.48977682,85.39,85.359,0.46468559]
[1771678741466,0.48977682,85.39,85.361,0.46468559]
[1771678743563,0.48977682,85.39,85.363,0.46468559]
[1771678746955,0.48977682,85.39,85.365,0.46468559]
[1771678749360,0.48977682,85.39,85.366,11.71426563]
[1771678749570,0.48977682,85.39,85.367,0.46269986]
[1771678769580,0.47566852,85.397,85.369,0.46269986]
[1771678769979,0.47566852,85.409,85.371,0.46269986]
[1771678771568,0.47566852,85.407,85.373,0.46269986]
[1771678773967,0.47566852,85.418,85.38,4.21786309]
[1771678774185,0.47566852,85.418,85.381,0.46269986]
[1771678778687,0.45238181,85.409,85.374,0.48608385]
[1771678780083,0.45238181,85.407,85.374,0.48608385]
[1771678781670,0.45238181,85.405,85.374,0.48608385]
[1771678784097,0.45238181,85.403,85.374,0.48608385]
[1771678787199,0.45238181,85.401,85.374,0.48608385]
[1771678796800,0.45238181,85.399,85.361,0.48608385]
[1771678797184,0.45238181,85.399,85.371,0.48608385]
[1771678800098,12.16225791,85.398,85.371,0.48608385]
[1771678800297,0.45238181,85.397,85.371,0.48608385]
[1771678801407,0.45238181,85.397,85.35,29.29115407]
[1771678801408,11.71015035,85.396,85.364,0.48608385]
[1771678801592,0.45238181,85.395,85.35,33.5088373]
[1771678802490,11.71042461,85.394,85.351,11.71632435]
[1771678802811,0.45238181,85.393,85.351,11.71632435]
[1771678803603,0.45238181,85.393,85.352,0.48608385]
[1771678804301,0.45238181,85.389,85.352,0.48608385]
[1771678805716,0.45238181,85.388,85.354,0.48608385]
[1771678808899,0.45238181,85.388,85.356,0.48042346]
[1771678810719,0.45238181,85.388,85.358,0.46209292]
[1771678812619,0.45728743,85.386,85.358,0.46209292]
[1771678821630,0.45728743,85.379,85.347,11.71682776]
[1771678822937,0.45728743,85.379,85.343,0.46209292]
[1771678823616,0.45728743,85.377,85.343,0.46209292]
[1771678826734,0.45728743,85.375,85.343,0.46209292]
[1771678829539,0.45728743,85.369,85.343,0.46209292]
[1771678832146,0.45728743,85.367,85.343,0.46209292]
[1771678834426,0.45728743,85.359,85.326,0.46209292]
[1771678834627,0.45728743,85.359,85.327,0.46209292]
[1771678837451,0.45728743,85.357,85.327,0.46209292]
[1771678837657,0.463848,85.349,85.327,0.46209292]
[1771678837950,0.463848,85.349,85.321,0.45684139]
[1771678839653,0.463848,85.347,85.321,0.45684139]
[1771678844855,11.71399119,85.368,85.331,0.45684139]
[1771678846235,11.71399119,85.368,85.341,0.45684139]
[1771678846945,12.17783919,85.368,85.341,0.45684139]
[1771678848383,0.463848,85.367,85.341,0.45684139]
[1771678848650,0.463848,85.378,85.342,11.71755993]
[1771678848856,11.71139576,85.387,85.36,4.22134264]
[1771678849053,11.71139576,85.387,85.361,0.45684139]
[1771678853565,0.463848,85.394,85.361,0.45684139]
[1771678854250,0.463848,85.394,85.363,0.45684139]
[1771678854656,11.71008651,85.397,85.327,104.3]
[1771678854657,0.463848,85.389,85.351,0.45684139]
[1771678855235,11.71124748,85.388,85.352,11.71618708]
[1771678855440,0.463848,85.387,85.353,0.45684139]
[1771678857346,0.463848,85.387,85.36,4.22134264]
[1771678857661,0.463848,85.387,85.361,0.45684139]
[1771678857858,11.71124748,85.388,85.361,0.45684139]
[1771678861060,0.463848,85.388,85.361,0.45684139]
[1771678862350,11.71138463,85.387,85.361,0.45684139]
[1771678862556,0.463848,85.386,85.361,0.45684139]
[1771678866467,0.463848,85.384,85.356,0.45684139]
[1771678866968,0.463848,85.379,85.356,0.45684139]
[1771678867168,4.22134264,85.39,85.357,0.45684139]
[1771678867370,0.463848,85.389,85.357,0.45684139]
[1771678867956,0.463848,85.389,85.361,0.45299118]
[1771678868474,0.463848,85.389,85.363,0.45299118]
[1771678873454,0.49786916,85.387,85.363,0.45299118]
[1771678883881,0.49786916,85.385,85.363,0.45299118]
[1771678895984,0.49786916,85.385,85.365,0.47993424]
[1771678908008,0.49786916,85.385,85.352,0.47993412]
[1771678911901,0.49786916,85.385,85.353,11.71604981]
[1771678912212,0.49786916,85.385,85.354,0.47993409]
[1771678914213,0.49786916,85.385,85.361,0.47993407]
[1771678916315,0.49786916,85.385,85.362,0.47993405]
[1771678918320,0.49786916,85.385,85.364,0.47993404]
[1771678921710,0.4770616,85.388,85.366,0.47993402]
[1771678924430,0.4770616,85.388,85.367,11.71412841]
[1771678924610,0.4770616,85.388,85.368,0.479934]
[1771678932718,0.4770616,85.388,85.37,0.47698022]
[1771678937940,0.46182784,85.398,85.372,0.47698022]
[1771678949244,0.46182784,85.407,85.381,0.47698022]
[1771678949430,29.26611782,85.424,85.373,11.71330514]
[1771678949431,0.46182784,85.418,85.391,0.47698022]
[1771678952630,0.46182784,85.416,85.391,0.47698022]
[1771678954130,29.26611782,85.424,85.374,0.47698022]
[1771678954131,0.46182784,85.409,85.374,0.47698022]
[1771678954336,0.46182784,85.409,85.371,0.47698022]
[1771678958256,11.70850505,85.408,85.372,11.71344234]
[1771678958436,0.49981808,85.407,85.373,0.4547455]
[1771678966165,0.49981808,85.411,85.381,0.4547455]
[1771678966537,0.49981808,85.411,85.391,0.4547455]
[1771678982476,11.70562689,85.429,85.401,0.4547455]
[1771678982681,11.70562689,85.429,85.4,4.21574038]
[1771678982682,0.49981808,85.45,85.42,4.21574038]
[1771678982878,0.1,85.5,85.441,0.4547455]
[1771678982879,0.1,85.48,85.441,0.4547455]
[1771678983064,0.1,85.48,85.461,0.4547455]
[1771678983263,0.1,85.48,85.47,4.21574038]
[1771678984681,0.1,85.48,85.46,4.21574038]
[1771678984979,0.49981808,85.479,85.46,4.21574038]
[1771678986781,0.1,85.48,85.462,0.4547455]
[1771678987572,0.1,85.48,85.47,4.21574038]
[1771678987785,0.1,85.48,85.465,0.47532377]
[1771678988298,0.1,85.48,85.47,4.21574038]
[1771678989586,0.1,85.48,85.465,0.47532377]